[Event "*** MasterClass Titled Tuesday Blitz"]
[Site "Chess.com"]
[Date "2017.10.03"]
[Round "4"]
[White "Buffy7"]
[Black "biostatistician"]
[Result "1-0"]
[WhiteElo "2463"]
[BlackElo "2398"]
[TimeControl "180+2"]
[EndTime "13:50:10 PDT"]
[Termination "Buffy7 won by resignation"]

1. Nf3 {[%clk 0:03:01.9]} 1... Nf6 {[%clk 0:03:00.4]} 2. d4 {[%clk 0:03:02.9]}
2... g6 {[%clk 0:03:02.3]} 3. e3 {[%clk 0:03:03.8]} 3... Bg7 {[%clk 0:03:04.2]}
4. c4 {[%clk 0:03:05.1]} 4... O-O {[%clk 0:03:04.5]} 5. Nc3 {[%clk 0:03:06.6]}
5... c5 {[%clk 0:03:02.8]} 6. d5 {[%clk 0:03:06.7]} 6... d6 {[%clk 0:03:02]} 7.
Be2 {[%clk 0:03:07.8]} 7... e6 {[%clk 0:03:00.2]} 8. O-O {[%clk 0:03:08.1]} 8...
a6 {[%clk 0:02:59.5]} 9. a4 {[%clk 0:03:06.6]} 9... exd5 {[%clk 0:03:00.3]} 10.
cxd5 {[%clk 0:03:08.5]} 10... Bf5 {[%clk 0:02:50.4]} 11. Nd2 {[%clk 0:03:05.8]}
11... Re8 {[%clk 0:02:49.5]} 12. Re1 {[%clk 0:03:04.6]} 12... Nbd7 {[%clk
0:02:47.8]} 13. Bf1 {[%clk 0:02:58.4]} 13... Ne4 {[%clk 0:02:25.1]} 14. Ndxe4
{[%clk 0:02:53.9]} 14... Bxe4 {[%clk 0:02:27]} 15. f3 {[%clk 0:02:55]} 15... Bf5
{[%clk 0:02:17.9]} 16. e4 {[%clk 0:02:55.1]} 16... Bd4+ {[%clk 0:02:18.4]} 17.
Be3 {[%clk 0:02:51.2]} 17... Bxe3+ {[%clk 0:01:41.2]} 18. Rxe3 {[%clk
0:02:53.1]} 18... Nf6 {[%clk 0:01:37.9]} 19. Qb3 {[%clk 0:02:47.1]} 19... Rb8
{[%clk 0:01:34.6]} 20. a5 {[%clk 0:02:46.7]} 20... Bd7 {[%clk 0:01:28.3]} 21.
Ree1 {[%clk 0:02:28.9]} 21... b5 {[%clk 0:01:25.5]} 22. axb6 {[%clk 0:02:29.6]}
22... Rxb6 {[%clk 0:01:26.4]} 23. Qc2 {[%clk 0:02:29.8]} 23... Qb8 {[%clk
0:01:23.8]} 24. Ra2 {[%clk 0:02:29.6]} 24... Bb5 {[%clk 0:01:22.5]} 25. Rea1
{[%clk 0:02:23.4]} 25... Nh5 {[%clk 0:01:14.8]} 26. Nd1 {[%clk 0:02:21.8]} 26...
Nf4 {[%clk 0:01:06.7]} 27. Qd2 {[%clk 0:02:17.4]} 27... Nh5 {[%clk 0:01:00.7]}
28. Ne3 {[%clk 0:02:10]} 28... Qb7 {[%clk 0:00:48]} 29. Bxb5 {[%clk 0:02:00.2]}
29... axb5 {[%clk 0:00:48]} 30. Ra7 {[%clk 0:02:00.2]} 30... Qb8 {[%clk
0:00:41.2]} 31. Ng4 {[%clk 0:01:59.7]} 31... Rb7 {[%clk 0:00:41.5]} 32. Qa5
{[%clk 0:01:43.2]} 32... Rxa7 {[%clk 0:00:26.9]} 33. Qxa7 {[%clk 0:01:45.1]}
33... Kg7 {[%clk 0:00:20.8]} 34. Qxb8 {[%clk 0:01:36.1]} 34... Rxb8 {[%clk
0:00:21.1]} 35. Ra6 {[%clk 0:01:37.5]} 35... Rd8 {[%clk 0:00:21.6]} 36. Rb6
{[%clk 0:01:37]} 36... b4 {[%clk 0:00:21.9]} 37. Ne3 {[%clk 0:01:37.9]} 37...
Nf6 {[%clk 0:00:21.8]} 38. Nc4 {[%clk 0:01:38.1]} 38... Ne8 {[%clk 0:00:23.3]}
39. Ra6 {[%clk 0:01:33.3]} 39... Kf8 {[%clk 0:00:24.2]} 40. Kf2 {[%clk 0:01:34]}
40... Ke7 {[%clk 0:00:25.3]} 41. Ke3 {[%clk 0:01:33.5]} 41... f6 {[%clk
0:00:25.7]} 42. h4 {[%clk 0:01:34]} 42... h6 {[%clk 0:00:26.3]} 43. g4 {[%clk
0:01:34.2]} 43... g5 {[%clk 0:00:27.1]} 44. h5 {[%clk 0:01:35.2]} 44... Rd7
{[%clk 0:00:27.4]} 45. Kd3 {[%clk 0:01:35]} 45... Rd8 {[%clk 0:00:27.7]} 46. Nb6
{[%clk 0:01:32.5]} 46... Rb8 {[%clk 0:00:21.6]} 47. Ra7+ {[%clk 0:01:32.6]} 1-0

[Event "*** MasterClass Titled Tuesday Blitz"]
[Site "Chess.com"]
[Date "2017.10.03"]
[Round "4"]
[White "PlotnikovPavel"]
[Black "tigra"]
[Result "0-1"]
[WhiteElo "2452"]
[BlackElo "2634"]
[TimeControl "180+2"]
[EndTime "13:50:19 PDT"]
[Termination "tigra won by resignation"]

1. d4 {[%clk 0:03:01.9]} 1... Nf6 {[%clk 0:03:00.4]} 2. Nf3 {[%clk 0:03:03.1]}
2... g6 {[%clk 0:03:01.8]} 3. c4 {[%clk 0:03:04]} 3... Bg7 {[%clk 0:03:02.8]} 4.
Nc3 {[%clk 0:03:05.2]} 4... d5 {[%clk 0:03:04.4]} 5. e3 {[%clk 0:03:04.1]} 5...
O-O {[%clk 0:03:04.5]} 6. cxd5 {[%clk 0:03:01]} 6... Nxd5 {[%clk 0:03:04.9]} 7.
Qb3 {[%clk 0:03:00.5]} 7... Nb6 {[%clk 0:03:02.1]} 8. a4 {[%clk 0:02:56.3]} 8...
Be6 {[%clk 0:02:58.5]} 9. Qc2 {[%clk 0:02:56.7]} 9... Nc6 {[%clk 0:02:56.8]} 10.
a5 {[%clk 0:02:55.6]} 10... Nd5 {[%clk 0:02:49.4]} 11. Nxd5 {[%clk 0:02:44.5]}
11... Qxd5 {[%clk 0:02:51.3]} 12. a6 {[%clk 0:02:38.7]} 12... Nb4 {[%clk
0:02:49.8]} 13. Qa4 {[%clk 0:02:34.8]} 13... c5 {[%clk 0:02:45]} 14. Bd2 {[%clk
0:02:30.6]} 14... Nxa6 {[%clk 0:02:38.6]} 15. Bxa6 {[%clk 0:02:30.5]} 15... bxa6
{[%clk 0:02:38.6]} 16. O-O {[%clk 0:02:21.8]} 16... Bg4 {[%clk 0:02:39.4]} 17.
Ne5 {[%clk 0:02:16.2]} 17... Be2 {[%clk 0:02:40]} 18. Rfe1 {[%clk 0:02:11.5]}
18... Bb5 {[%clk 0:02:40.7]} 19. Qc2 {[%clk 0:02:06.5]} 19... cxd4 {[%clk
0:02:40.7]} 20. exd4 {[%clk 0:02:07.6]} 20... Qxd4 {[%clk 0:02:41.6]} 21. Bc3
{[%clk 0:02:08.7]} 21... Rac8 {[%clk 0:02:38.8]} 22. Rad1 {[%clk 0:01:53.2]}
22... Qa4 {[%clk 0:02:18.6]} 23. Qxa4 {[%clk 0:01:34.8]} 23... Bxa4 {[%clk
0:02:18.9]} 24. Rd5 {[%clk 0:01:34.8]} 24... Rfd8 {[%clk 0:02:15.7]} 25. Rxd8+
{[%clk 0:01:28]} 25... Rxd8 {[%clk 0:02:17.6]} 26. f4 {[%clk 0:01:29.2]} 26...
e6 {[%clk 0:02:12.1]} 27. Kf2 {[%clk 0:01:28.8]} 27... h5 {[%clk 0:02:10.2]} 28.
g3 {[%clk 0:01:25.5]} 28... Bf8 {[%clk 0:02:10.5]} 29. Re2 {[%clk 0:01:11.2]}
29... Bc5+ {[%clk 0:02:09.5]} 30. Kg2 {[%clk 0:01:05.2]} 30... Rd1 {[%clk
0:02:07.7]} 31. Rd2 {[%clk 0:01:05.8]} 31... Rxd2+ {[%clk 0:02:07.6]} 32. Bxd2
{[%clk 0:01:06.3]} 32... Bd4 {[%clk 0:02:09.1]} 33. b4 {[%clk 0:01:05.6]} 33...
Bb3 {[%clk 0:02:00.6]} 34. Kf3 {[%clk 0:01:02.5]} 34... Bd5+ {[%clk 0:02:00.7]}
35. Ke2 {[%clk 0:01:03.6]} 35... Be4 {[%clk 0:02:01.1]} 36. Be3 {[%clk
0:00:57.8]} 36... Bxe3 {[%clk 0:02:02.1]} 37. Kxe3 {[%clk 0:00:58.7]} 37... Bg2
{[%clk 0:02:01.3]} 38. Kd4 {[%clk 0:00:59]} 38... Kf8 {[%clk 0:01:53.2]} 39. Kc5
{[%clk 0:00:55.7]} 39... Ke7 {[%clk 0:01:54.3]} 40. Nc4 {[%clk 0:00:37.8]} 40...
f6 {[%clk 0:01:53]} 41. Kd4 {[%clk 0:00:37.3]} 41... Bd5 {[%clk 0:01:52.7]} 42.
Ne3 {[%clk 0:00:27.3]} 42... Kd6 {[%clk 0:01:53.6]} 43. h4 {[%clk 0:00:24.9]}
43... Bf3 {[%clk 0:01:49.4]} 44. Nc4+ {[%clk 0:00:24.8]} 44... Kc6 {[%clk
0:01:50]} 45. Na5+ {[%clk 0:00:20.8]} 45... Kb5 {[%clk 0:01:50.2]} 46. Kc3
{[%clk 0:00:21.3]} 46... Bd5 {[%clk 0:01:51.3]} 0-1

[Event "*** MasterClass Titled Tuesday Blitz"]
[Site "Chess.com"]
[Date "2017.10.03"]
[Round "4"]
[White "Tesla37"]
[Black "swayamsm"]
[Result "1-0"]
[WhiteElo "2684"]
[BlackElo "2495"]
[TimeControl "180+2"]
[EndTime "13:50:26 PDT"]
[Termination "Tesla37 won by resignation"]

1. c4 {[%clk 0:03:01.9]} 1... Nf6 {[%clk 0:02:59.4]} 2. Nc3 {[%clk 0:03:01.8]}
2... c5 {[%clk 0:02:56.1]} 3. g3 {[%clk 0:03:00.9]} 3... g6 {[%clk 0:02:55.8]}
4. Bg2 {[%clk 0:03:01.4]} 4... Bg7 {[%clk 0:02:57.3]} 5. e3 {[%clk 0:03:02.3]}
5... O-O {[%clk 0:02:58.6]} 6. Nge2 {[%clk 0:03:02.2]} 6... Nc6 {[%clk
0:02:58.5]} 7. b3 {[%clk 0:03:01.5]} 7... e6 {[%clk 0:02:56.6]} 8. Bxc6 {[%clk
0:02:55.5]} 8... dxc6 {[%clk 0:02:54.1]} 9. f4 {[%clk 0:02:54.2]} 9... Qd3
{[%clk 0:02:43.1]} 10. O-O {[%clk 0:02:51.3]} 10... Ne4 {[%clk 0:02:32.8]} 11.
Bb2 {[%clk 0:02:50.7]} 11... Nxd2 {[%clk 0:02:29.6]} 12. Rf2 {[%clk 0:02:37.5]}
12... Qxe3 {[%clk 0:02:25.7]} 13. Qc2 {[%clk 0:02:25.6]} 13... Bd4 {[%clk
0:01:44.1]} 14. Nxd4 {[%clk 0:02:05.8]} 14... cxd4 {[%clk 0:01:35.3]} 15. Qxd2
{[%clk 0:02:05.6]} 15... Qxd2 {[%clk 0:01:36.3]} 16. Rxd2 {[%clk 0:02:05.2]}
16... dxc3 {[%clk 0:01:37.9]} 17. Bxc3 {[%clk 0:02:04.6]} 17... f6 {[%clk
0:01:38.2]} 18. Rad1 {[%clk 0:02:03.3]} 18... b6 {[%clk 0:01:16.2]} 19. Rd8
{[%clk 0:01:56]} 19... Rxd8 {[%clk 0:01:01.5]} 20. Rxd8+ {[%clk 0:01:54.8]}
20... Kf7 {[%clk 0:01:03.4]} 21. g4 {[%clk 0:01:50.7]} 21... h5 {[%clk
0:00:55.1]} 22. g5 {[%clk 0:01:50]} 22... fxg5 {[%clk 0:00:51.4]} 23. fxg5
{[%clk 0:01:50.7]} 23... a5 {[%clk 0:00:36.2]} 24. Be5 {[%clk 0:01:41]} 24... b5
{[%clk 0:00:29.8]} 25. a4 {[%clk 0:01:28.6]} 25... bxa4 {[%clk 0:00:27.9]} 26.
bxa4 {[%clk 0:01:28.9]} 26... c5 {[%clk 0:00:22.9]} 27. Kf2 {[%clk 0:01:25.4]}
27... Ke7 {[%clk 0:00:23.7]} 28. Rh8 {[%clk 0:01:25.1]} 28... Kd7 {[%clk
0:00:23]} 29. Rg8 {[%clk 0:01:04.7]} 29... Bb7 {[%clk 0:00:21.8]} 30. Rg7+
{[%clk 0:01:00.3]} 30... Kc6 {[%clk 0:00:20.1]} 31. Rxg6 {[%clk 0:01:01.2]}
31... Rf8+ {[%clk 0:00:21.2]} 32. Ke3 {[%clk 0:01:01.1]} 32... Kd7 {[%clk
0:00:21.4]} 33. Rg7+ {[%clk 0:01:01.9]} 33... Kc6 {[%clk 0:00:22.7]} 34. g6
{[%clk 0:00:59.6]} 34... Kb6 {[%clk 0:00:22.6]} 35. Rf7 {[%clk 0:01:00.4]} 35...
Rd8 {[%clk 0:00:12.1]} 36. g7 {[%clk 0:00:58.9]} 1-0

[Event "*** MasterClass Titled Tuesday Blitz"]
[Site "Chess.com"]
[Date "2017.10.03"]
[Round "4"]
[White "Aygehovit1992"]
[Black "IMVoja"]
[Result "1-0"]
[WhiteElo "2447"]
[BlackElo "2393"]
[TimeControl "180+2"]
[EndTime "13:50:28 PDT"]
[Termination "Aygehovit1992 won by checkmate"]

1. d4 {[%clk 0:03:01.9]} 1... Nf6 {[%clk 0:03:00.1]} 2. c4 {[%clk 0:03:02.8]}
2... c5 {[%clk 0:03:00.7]} 3. d5 {[%clk 0:03:02.9]} 3... d6 {[%clk 0:03:01.1]}
4. Nc3 {[%clk 0:03:02.4]} 4... g6 {[%clk 0:03:02.5]} 5. e4 {[%clk 0:03:02.8]}
5... Bg7 {[%clk 0:03:03.9]} 6. Nf3 {[%clk 0:03:03.4]} 6... O-O {[%clk
0:03:04.9]} 7. Bd3 {[%clk 0:03:04.1]} 7... Na6 {[%clk 0:03:05.6]} 8. O-O {[%clk
0:03:04.7]} 8... Nc7 {[%clk 0:03:06.8]} 9. h3 {[%clk 0:03:05.6]} 9... e5 {[%clk
0:03:07.2]} 10. dxe6 {[%clk 0:03:02.4]} 10... Nxe6 {[%clk 0:03:07.7]} 11. Be3
{[%clk 0:03:02.8]} 11... Nh5 {[%clk 0:03:06.5]} 12. Qd2 {[%clk 0:02:58.9]} 12...
Bd7 {[%clk 0:02:57.4]} 13. Nd5 {[%clk 0:02:46]} 13... Bc6 {[%clk 0:02:57.9]} 14.
Rad1 {[%clk 0:02:41.7]} 14... Bxd5 {[%clk 0:02:52.2]} 15. exd5 {[%clk
0:02:41.9]} 15... Nd4 {[%clk 0:02:46.6]} 16. Nxd4 {[%clk 0:02:42.7]} 16... cxd4
{[%clk 0:02:47.8]} 17. Bg5 {[%clk 0:02:41.8]} 17... f6 {[%clk 0:02:40.2]} 18.
Bh6 {[%clk 0:02:28.9]} 18... Bxh6 {[%clk 0:02:21.4]} 19. Qxh6 {[%clk 0:02:30.8]}
19... f5 {[%clk 0:02:22.7]} 20. Rfe1 {[%clk 0:02:23.3]} 20... Ng7 {[%clk
0:02:00.8]} 21. Re2 {[%clk 0:02:11.9]} 21... Qf6 {[%clk 0:01:56.6]} 22. Rde1
{[%clk 0:02:05.1]} 22... Rae8 {[%clk 0:01:57.4]} 23. Qd2 {[%clk 0:02:05.3]}
23... Rxe2 {[%clk 0:01:56.8]} 24. Rxe2 {[%clk 0:02:07.2]} 24... Re8 {[%clk
0:01:56.9]} 25. Rxe8+ {[%clk 0:02:06]} 25... Nxe8 {[%clk 0:01:57.8]} 26. Qa5
{[%clk 0:02:07.2]} 26... a6 {[%clk 0:01:55.4]} 27. Qb6 {[%clk 0:02:07.4]} 27...
Qe5 {[%clk 0:01:42]} 28. Kf1 {[%clk 0:02:01.5]} 28... Qh2 {[%clk 0:01:22.5]} 29.
Qxb7 {[%clk 0:01:54.6]} 29... Qh1+ {[%clk 0:01:22.8]} 30. Ke2 {[%clk 0:01:55.6]}
30... Qxg2 {[%clk 0:01:24.4]} 31. Qe7 {[%clk 0:01:55.9]} 31... Ng7 {[%clk
0:01:16.8]} 32. Qd8+ {[%clk 0:01:56.5]} 32... Kf7 {[%clk 0:01:16.2]} 33. Qxd6
{[%clk 0:01:58]} 33... Qxh3 {[%clk 0:01:16.1]} 34. c5 {[%clk 0:01:58.6]} 34...
Qg4+ {[%clk 0:01:14.6]} 35. Kd2 {[%clk 0:01:59.8]} 35... Qg5+ {[%clk 0:01:08.7]}
36. Kc2 {[%clk 0:01:58.3]} 36... Qg2 {[%clk 0:01:09.6]} 37. Qc7+ {[%clk
0:01:48.9]} 37... Kf6 {[%clk 0:01:06.9]} 38. Qd8+ {[%clk 0:01:40.4]} 38... Kf7
{[%clk 0:01:05.3]} 39. d6 {[%clk 0:01:41.4]} 39... Qxf2+ {[%clk 0:01:05.2]} 40.
Kb3 {[%clk 0:01:42.3]} 40... Qe3 {[%clk 0:01:02.4]} 41. Kc4 {[%clk 0:01:30.1]}
41... Qc1+ {[%clk 0:00:18.6]} 42. Kb3 {[%clk 0:01:15.7]} 42... Qxc5 {[%clk
0:00:10.8]} 43. Bc4+ {[%clk 0:01:16.5]} 43... Ne6 {[%clk 0:00:05.4]} 44. Qe7+
{[%clk 0:01:17.1]} 44... Kg8 {[%clk 0:00:06.6]} 45. Bxe6+ {[%clk 0:01:18.4]}
45... Kh8 {[%clk 0:00:05.6]} 46. Qf8# {[%clk 0:01:19.9]} 1-0

[Event "*** MasterClass Titled Tuesday Blitz"]
[Site "Chess.com"]
[Date "2017.10.03"]
[Round "4"]
[White "Kawhi_Leonard2"]
[Black "51616516516"]
[Result "1-0"]
[WhiteElo "2244"]
[BlackElo "2051"]
[TimeControl "180+2"]
[EndTime "13:50:47 PDT"]
[Termination "Kawhi_Leonard2 won on time"]

1. e4 {[%clk 0:03:01.9]} 1... c5 {[%clk 0:02:59.2]} 2. Nf3 {[%clk 0:03:02.2]}
2... g6 {[%clk 0:03:00.6]} 3. d4 {[%clk 0:03:02.8]} 3... cxd4 {[%clk 0:03:02.2]}
4. Nxd4 {[%clk 0:03:04.4]} 4... Nc6 {[%clk 0:03:03.6]} 5. Nc3 {[%clk 0:03:05.6]}
5... Bg7 {[%clk 0:03:04.3]} 6. Be3 {[%clk 0:03:07.1]} 6... Nf6 {[%clk 0:03:05]}
7. Bc4 {[%clk 0:03:07.4]} 7... O-O {[%clk 0:03:05.8]} 8. Bb3 {[%clk 0:03:08.1]}
8... d6 {[%clk 0:03:07.4]} 9. f3 {[%clk 0:03:08.8]} 9... Bd7 {[%clk 0:03:08.3]}
10. Qd2 {[%clk 0:03:09.8]} 10... Nxd4 {[%clk 0:03:09.8]} 11. Bxd4 {[%clk
0:03:10.4]} 11... b5 {[%clk 0:03:11.4]} 12. h4 {[%clk 0:03:06.4]} 12... a5
{[%clk 0:03:08.6]} 13. a4 {[%clk 0:03:07.4]} 13... b4 {[%clk 0:02:58.7]} 14. Nd5
{[%clk 0:03:07.9]} 14... Nxd5 {[%clk 0:02:59]} 15. exd5 {[%clk 0:03:09]} 15...
Bxd4 {[%clk 0:02:14.3]} 16. Qxd4 {[%clk 0:03:07.3]} 16... Rc8 {[%clk 0:02:15.9]}
17. h5 {[%clk 0:03:03.7]} 17... Qc7 {[%clk 0:02:13.8]} 18. O-O-O {[%clk
0:02:41.3]} 18... Qc5 {[%clk 0:02:05.2]} 19. Qh4 {[%clk 0:02:34]} 19... Qe3+
{[%clk 0:02:05.2]} 20. Kb1 {[%clk 0:02:27.4]} 20... g5 {[%clk 0:02:05]} 21. Qg3
{[%clk 0:02:19.2]} 21... Bf5 {[%clk 0:02:02.1]} 22. Rhe1 {[%clk 0:02:18.4]}
22... Qxb3 {[%clk 0:01:47.9]} 23. Qxg5+ {[%clk 0:02:17.1]} 23... Bg6 {[%clk
0:01:49.3]} 24. Qxg6+ {[%clk 0:02:10.4]} 24... hxg6 {[%clk 0:01:48.8]} 25. cxb3
{[%clk 0:02:12.3]} 25... Rc7 {[%clk 0:01:27.2]} 26. hxg6 {[%clk 0:02:10.4]}
26... fxg6 {[%clk 0:01:27.5]} 27. Re6 {[%clk 0:02:08.7]} 27... Kf7 {[%clk
0:01:23.4]} 28. Rh1 {[%clk 0:02:09]} 28... Kg7 {[%clk 0:01:16.3]} 29. Rhe1
{[%clk 0:01:59.9]} 29... Kf7 {[%clk 0:01:08.7]} 30. R1e4 {[%clk 0:01:49]} 30...
Rh8 {[%clk 0:01:04.7]} 31. Rf4+ {[%clk 0:01:49.9]} 31... Kg7 {[%clk 0:01:05.1]}
32. Rc4 {[%clk 0:01:50.8]} 32... Rh1+ {[%clk 0:00:20.5]} 33. Ka2 {[%clk
0:01:49.9]} 33... Rxc4 {[%clk 0:00:17.7]} 34. bxc4 {[%clk 0:01:50.7]} 34... Kf7
{[%clk 0:00:19.6]} 35. Kb3 {[%clk 0:01:25.7]} 35... Rg1 {[%clk 0:00:18.4]} 36.
Re2 {[%clk 0:01:26.5]} 36... Rd1 {[%clk 0:00:15.1]} 37. Kc2 {[%clk 0:01:21.7]}
37... Ra1 {[%clk 0:00:14.2]} 38. Kb3 {[%clk 0:01:20.5]} 38... Rd1 {[%clk
0:00:14.5]} 39. Rc2 {[%clk 0:01:21.1]} 39... Kf6 {[%clk 0:00:12.6]} 40. c5
{[%clk 0:01:20.3]} 40... dxc5 {[%clk 0:00:06]} 41. Rxc5 {[%clk 0:01:20.2]} 41...
Ke5 {[%clk 0:00:04.9]} 42. Rxa5 {[%clk 0:01:19.5]} 42... Rd2 {[%clk 0:00:05.3]}
43. Rb5 {[%clk 0:01:12.4]} 43... Rxg2 {[%clk 0:00:05.3]} 44. a5 {[%clk
0:01:13.7]} 44... Rg1 {[%clk 0:00:04]} 45. Kxb4 {[%clk 0:01:12.2]} 45... Rf1
{[%clk 0:00:04.7]} 46. a6 {[%clk 0:01:11.8]} 46... Ra1 {[%clk 0:00:03.4]} 47.
Ra5 {[%clk 0:01:12.8]} 47... Kd6 {[%clk 0:00:04.2]} 48. Rxa1 {[%clk 0:01:12.6]}
1-0

[Event "*** MasterClass Titled Tuesday Blitz"]
[Site "Chess.com"]
[Date "2017.10.03"]
[Round "4"]
[White "BillieKimbah"]
[Black "GM_dmitrij"]
[Result "1-0"]
[WhiteElo "2711"]
[BlackElo "2660"]
[TimeControl "180+2"]
[EndTime "13:50:51 PDT"]
[Termination "BillieKimbah won by checkmate"]

1. d4 {[%clk 0:02:59.7]} 1... Nf6 {[%clk 0:03:00.8]} 2. Nf3 {[%clk 0:03:00.7]}
2... d5 {[%clk 0:03:01.5]} 3. c4 {[%clk 0:03:01.1]} 3... e6 {[%clk 0:03:02.5]}
4. Nc3 {[%clk 0:02:59.9]} 4... c6 {[%clk 0:03:01.9]} 5. e3 {[%clk 0:02:57]} 5...
Nbd7 {[%clk 0:02:59.3]} 6. Be2 {[%clk 0:02:56.5]} 6... dxc4 {[%clk 0:02:59.3]}
7. a4 {[%clk 0:02:55.5]} 7... Bd6 {[%clk 0:02:46.2]} 8. Nd2 {[%clk 0:02:53.2]}
8... O-O {[%clk 0:02:39.2]} 9. Nxc4 {[%clk 0:02:51.3]} 9... Bc7 {[%clk
0:02:40.4]} 10. b3 {[%clk 0:02:44.4]} 10... e5 {[%clk 0:02:41.3]} 11. Ba3 {[%clk
0:02:42.7]} 11... Re8 {[%clk 0:02:39.7]} 12. Nd6 {[%clk 0:02:40.7]} 12... Re6
{[%clk 0:02:15.9]} 13. Nxc8 {[%clk 0:02:12.8]} 13... Rxc8 {[%clk 0:02:15.3]} 14.
O-O {[%clk 0:01:32.4]} 14... e4 {[%clk 0:02:10.6]} 15. Bc4 {[%clk 0:01:10]}
15... Re8 {[%clk 0:01:45.1]} 16. g3 {[%clk 0:01:07.3]} 16... Nb6 {[%clk
0:01:45.3]} 17. Rc1 {[%clk 0:01:07.7]} 17... Qd7 {[%clk 0:01:43]} 18. Be2 {[%clk
0:01:07.4]} 18... Qh3 {[%clk 0:01:34.9]} 19. Re1 {[%clk 0:01:07.6]} 19... h5
{[%clk 0:01:34.6]} 20. Bf1 {[%clk 0:01:07.2]} 20... Qf5 {[%clk 0:01:35.9]} 21.
Bc5 {[%clk 0:01:04.7]} 21... Nbd7 {[%clk 0:01:13.6]} 22. Bg2 {[%clk 0:01:04.1]}
22... Nxc5 {[%clk 0:00:57.3]} 23. dxc5 {[%clk 0:01:06]} 23... Ba5 {[%clk
0:00:58.5]} 24. Qd4 {[%clk 0:00:58.9]} 24... Rcd8 {[%clk 0:00:52.8]} 25. Qc4
{[%clk 0:00:59.5]} 25... Rd2 {[%clk 0:00:49.2]} 26. Rf1 {[%clk 0:00:53.2]} 26...
Bxc3 {[%clk 0:00:47.8]} 27. Qxc3 {[%clk 0:00:53.7]} 27... Red8 {[%clk
0:00:49.2]} 28. h3 {[%clk 0:00:51.1]} 28... Qd5 {[%clk 0:00:46.7]} 29. b4 {[%clk
0:00:50.3]} 29... Qd3 {[%clk 0:00:44.9]} 30. Qe5 {[%clk 0:00:48.7]} 30... Qd5
{[%clk 0:00:45.5]} 31. Qc7 {[%clk 0:00:49.4]} 31... Qd7 {[%clk 0:00:46.5]} 32.
Qf4 {[%clk 0:00:50.3]} 32... Qe7 {[%clk 0:00:41.7]} 33. b5 {[%clk 0:00:47.9]}
33... R2d5 {[%clk 0:00:40.2]} 34. h4 {[%clk 0:00:41.3]} 34... cxb5 {[%clk
0:00:37.2]} 35. axb5 {[%clk 0:00:41.8]} 35... Rxc5 {[%clk 0:00:38.7]} 36. Rxc5
{[%clk 0:00:38.9]} 36... Qxc5 {[%clk 0:00:40.6]} 37. Bxe4 {[%clk 0:00:39.4]}
37... Qxb5 {[%clk 0:00:27.3]} 38. Rb1 {[%clk 0:00:40.1]} 38... Qc5 {[%clk
0:00:14.8]} 39. Rxb7 {[%clk 0:00:35.6]} 39... a5 {[%clk 0:00:13.5]} 40. Kg2
{[%clk 0:00:23.4]} 40... Nxe4 {[%clk 0:00:14]} 41. Qxf7+ {[%clk 0:00:23.8]}
41... Kh8 {[%clk 0:00:14.8]} 42. Qxg7# {[%clk 0:00:23.9]} 1-0

[Event "*** MasterClass Titled Tuesday Blitz"]
[Site "Chess.com"]
[Date "2017.10.03"]
[Round "4"]
[White "RaphaeI"]
[Black "tomsishere"]
[Result "1-0"]
[WhiteElo "2420"]
[BlackElo "2279"]
[TimeControl "180+2"]
[EndTime "13:50:53 PDT"]
[Termination "RaphaeI won by resignation"]

1. d4 {[%clk 0:03:01.9]} 1... Nf6 {[%clk 0:03:00]} 2. c4 {[%clk 0:03:01.6]} 2...
g6 {[%clk 0:03:00.9]} 3. Nf3 {[%clk 0:03:01.3]} 3... Bg7 {[%clk 0:03:00.8]} 4.
g3 {[%clk 0:03:02.7]} 4... O-O {[%clk 0:03:00.3]} 5. Bg2 {[%clk 0:03:03.9]} 5...
c6 {[%clk 0:03:01.8]} 6. Nc3 {[%clk 0:03:03.7]} 6... d5 {[%clk 0:03:03.1]} 7.
cxd5 {[%clk 0:03:05.1]} 7... cxd5 {[%clk 0:03:04.5]} 8. Ne5 {[%clk 0:03:06.8]}
8... Nc6 {[%clk 0:02:52]} 9. O-O {[%clk 0:02:58]} 9... Ng4 {[%clk 0:02:46]} 10.
f4 {[%clk 0:02:19.5]} 10... Ngxe5 {[%clk 0:02:38.9]} 11. fxe5 {[%clk 0:02:21.4]}
11... e6 {[%clk 0:02:38]} 12. Be3 {[%clk 0:01:53.1]} 12... Bd7 {[%clk
0:02:33.9]} 13. Kh1 {[%clk 0:01:51.7]} 13... Na5 {[%clk 0:02:31.8]} 14. b3
{[%clk 0:01:45.1]} 14... Rc8 {[%clk 0:02:31.1]} 15. Rc1 {[%clk 0:01:45.5]} 15...
f6 {[%clk 0:02:28.1]} 16. exf6 {[%clk 0:01:38.9]} 16... Bxf6 {[%clk 0:02:28.6]}
17. Bh6 {[%clk 0:01:32.5]} 17... Rf7 {[%clk 0:02:26]} 18. e4 {[%clk 0:01:30.3]}
18... Bc6 {[%clk 0:02:13.3]} 19. Bh3 {[%clk 0:00:45.9]} 19... Qd7 {[%clk
0:02:03]} 20. Nxd5 {[%clk 0:00:39]} 20... Bg7 {[%clk 0:01:18.4]} 21. Bxg7 {[%clk
0:00:37.4]} 21... Kxg7 {[%clk 0:01:18.5]} 22. Rxf7+ {[%clk 0:00:26.5]} 22...
Qxf7 {[%clk 0:01:18.6]} 23. Qe2 {[%clk 0:00:23.1]} 23... Rd8 {[%clk 0:01:17.1]}
24. Nf4 {[%clk 0:00:21.6]} 24... Rd6 {[%clk 0:01:07.7]} 25. Rd1 {[%clk 0:00:18]}
25... g5 {[%clk 0:01:00.1]} 26. Nh5+ {[%clk 0:00:17.8]} 26... Kg8 {[%clk
0:00:55.2]} 27. Bg2 {[%clk 0:00:18.3]} 27... e5 {[%clk 0:00:49.9]} 28. dxe5
{[%clk 0:00:18.1]} 28... Rxd1+ {[%clk 0:00:50.3]} 29. Qxd1 {[%clk 0:00:20]}
29... Qe7 {[%clk 0:00:46.9]} 30. Nf6+ {[%clk 0:00:20.6]} 30... Kg7 {[%clk
0:00:45.8]} 31. Qh5 {[%clk 0:00:13.4]} 31... Qxe5 {[%clk 0:00:37.6]} 32. Qxh7+
{[%clk 0:00:14]} 32... Kf8 {[%clk 0:00:38.1]} 33. Qh8+ {[%clk 0:00:13.2]} 33...
Kf7 {[%clk 0:00:37.5]} 34. Qg8+ {[%clk 0:00:12]} 34... Kxf6 {[%clk 0:00:37.9]}
35. Qh8+ {[%clk 0:00:13]} 35... Ke6 {[%clk 0:00:34.6]} 36. Bh3+ {[%clk
0:00:14.3]} 36... Kd6 {[%clk 0:00:35.6]} 37. Qb8+ {[%clk 0:00:15.2]} 37... Kc5
{[%clk 0:00:27.4]} 38. Qxe5+ {[%clk 0:00:16.1]} 38... Kb6 {[%clk 0:00:28.4]} 39.
Qd4+ {[%clk 0:00:17.3]} 39... Ka6 {[%clk 0:00:29.6]} 40. Bf1+ {[%clk 0:00:17.1]}
40... b5 {[%clk 0:00:31.2]} 41. h4 {[%clk 0:00:14.8]} 41... gxh4 {[%clk
0:00:30.2]} 42. gxh4 {[%clk 0:00:16.7]} 42... Nb7 {[%clk 0:00:30.1]} 43. h5
{[%clk 0:00:17.4]} 1-0